fUSD/lending_fUSD_20251129
["ID","MTS","AMOUNT","RATE_DAILY","PERIOD"]
[395085891,1764413473449,-1221.2410812,0.00016438,2]
[395085892,1764413473459,-1221.2410812,0.00016438,2]
[395085893,1764413473468,-1221.2410812,0.00016438,2]
[395085894,1764413473478,-1221.2410812,0.00016438,2]
[395085895,1764413473487,-1221.2410812,0.00016438,2]
[395085896,1764413473497,-1221.2410812,0.00016438,2]
[395085897,1764413473507,-1221.2410812,0.00016438,2]
[395085898,1764413473516,-1221.2410812,0.00016438,2]
[395085899,1764413473526,-1221.2410812,0.00016438,2]
[395085900,1764413473535,-1221.2410812,0.00016438,2]
[395085901,1764413473545,-868.67877357,0.00016438,2]
[395085902,1764413473699,-352.56230763,0.00016438,2]
[395085903,1764413473709,-21.51246348,0.00016438,2]
[395085904,1764413473894,-838.48,0.00016438,2]
[395085905,1764413473907,-361.24861772,0.00016438,2]
[395085906,1764413473919,-981.34989165,0.00016438,2]
[395085907,1764413476537,-987.02951012,0.00014848,2]
[395085908,1764413476552,-239.89118955,0.00016438,2]
[395085909,1764413476561,-1221.2410812,0.00016438,2]
[395085910,1764413476570,-1221.2410812,0.00016438,2]
[395085911,1764413476579,-1221.2410812,0.00016438,2]
[395085912,1764413476589,-1221.2410812,0.00016438,2]
[395085913,1764413476598,-1221.2410812,0.00016438,2]
[395085914,1764413476607,-1221.2410812,0.00016438,2]
[395085915,1764413476617,-1221.2410812,0.00016438,2]
[395085916,1764413476626,-1221.2410812,0.00016438,2]
[395085917,1764413476636,-1221.2410812,0.00016438,2]
[395085918,1764413476645,-1221.2410812,0.00016438,2]
[395085919,1764413476654,-500.0,0.00016438,2]
[395085920,1764413476663,-500.0,0.00016438,2]
[395085921,1764413476671,-576.67319889,0.00016438,2]
[395085922,1764413476680,-1190.71005417,0.00016438,2]
[395085923,1764413476689,-1190.71005417,0.00016438,2]
[395085924,1764413476698,-1190.71005417,0.00016438,2]
[395085925,1764413476707,-1190.71005417,0.00016438,2]
[395085926,1764413476716,-1190.71005417,0.00016438,2]
[395085927,1764413476726,-1190.71005417,0.00016438,2]
[395085928,1764413476735,-1190.71005417,0.00016438,2]
[395085929,1764413476744,-1190.71005417,0.00016438,2]
[395085930,1764413476753,-1190.71005417,0.00016438,2]
[395085931,1764413476762,-1190.71005417,0.00016438,2]
[395085932,1764413476771,-1190.71005417,0.00016438,2]
[395085933,1764413476780,-1190.71005417,0.00016438,2]
[395085934,1764413476788,-1190.71005417,0.00016438,2]
[395085935,1764413476797,-1190.71005417,0.00016438,2]
[395085936,1764413476807,-1190.71005417,0.00016438,2]
[395085937,1764413476815,-1190.71005417,0.00016438,2]
[395085938,1764413476824,-1190.71005417,0.00016438,2]
[395085939,1764413476833,-1190.71005417,0.00016438,2]
[395085940,1764413476842,-1190.71005417,0.00016438,2]
[395085941,1764413476851,-1190.71005417,0.00016438,2]
[395085942,1764413476860,-1190.71005417,0.00016438,2]
[395085943,1764413476868,-1190.71005417,0.00016438,2]
[395085944,1764413476877,-1190.71005417,0.00016438,2]
[395085945,1764413476886,-1190.7100541,0.00016438,2]
[395085946,1764413476896,-7484.73,0.00016438,2]
[395085947,1764413476904,-225.14,0.00016438,2]
[395085948,1764413476914,-1485.0,0.00016438,2]
[395085949,1764413476922,-300.0,0.00016439,2]
[395085950,1764413476931,-250.0,0.00016439,2]
[395085951,1764413476940,-195.0,0.00016439,2]
[395085952,1764413476949,-2874.16233843,0.00016439,3]
[395085953,1764413476958,-1159.23,0.00016492,2]
[395085954,1764413476967,-798.55328261,0.00016521,2]
[395085955,1764413476976,-1098.51138711,0.00016521,2]
[395085956,1764413476986,-1000.0,0.00016521,2]
[395085957,1764413476994,-409.17543042,0.00016521,2]
[395085958,1764413477003,-1000.0,0.00016521,2]
[395085959,1764413477012,-691.9104549,0.00016521,2]
[395085960,1764413477021,-500.33310911,0.00016521,2]
[395085961,1764413477030,-512.88987894,0.00016521,2]
[395085962,1764413477039,-219.90357002,0.00016521,2]
[395085963,1764413477048,-921.91044416,0.00016521,2]
[395085964,1764413477057,-1000.0,0.00016521,2]
[395085965,1764413477066,-174.67915074,0.00016521,2]
[395085966,1764413477075,-187.96145124,0.00016521,2]
[395085967,1764413477084,-430.3435593,0.00016521,2]
[395085968,1764413477093,-1000.0,0.00016521,2]
[395085969,1764413477102,-200.0,0.00016585,2]
[395085970,1764413477110,-429.2573,0.00016746,2]
[395085971,1764413477119,-1159.23,0.00016766,2]
[395085972,1764413477128,-1185.31971642,0.00016767,2]
[395085973,1764413477137,-15192.21845403,0.000168,2]
[395085974,1764413477146,-261.3167003,0.00016867,2]
[395085975,1764413477156,-150.0,0.00016867,2]
[395085976,1764413477165,-190.91855774,0.00016867,2]
[395085977,1764413477174,-620.0,0.00016894,2]
[395085978,1764413477183,-300.0,0.00016894,2]
[395085979,1764413477195,-500.0,0.00016894,2]
[395085980,1764413477204,-151.0,0.00016894,2]
[395085981,1764413477213,-500.0,0.00016894,2]
[395085982,1764413477221,-500.0,0.00016894,2]
[395085983,1764413477230,-500.0,0.00016894,2]
[395085984,1764413477239,-500.0,0.00016894,2]
[395085985,1764413477248,-500.0,0.00016894,2]
[395085986,1764413477258,-151.0,0.00016894,2]
[395085987,1764413477267,-500.0,0.00016894,2]
[395085988,1764413477275,-151.0,0.00016894,2]
[395085989,1764413477284,-1820.2931148,0.00016894,2]
[395085990,1764413477294,-500.0,0.00016894,2]
[395085991,1764413477303,-151.0,0.00016894,2]
[395085992,1764413477312,-500.0,0.00016894,2]
[395085993,1764413477321,-151.0,0.00016894,2]
[395085994,1764413477330,-500.0,0.00016894,2]
[395085995,1764413477339,-151.0,0.00016894,2]
[395085996,1764413477349,-500.0,0.00016894,2]
[395085997,1764413477358,-151.0,0.00016894,2]
[395085998,1764413477368,-500.0,0.00016894,2]
[395085999,1764413477377,-250.0,0.00016894,2]
[395086000,1764413477387,-400.77510573,0.00016894,2]
[395086001,1764413477396,-151.0,0.00016894,2]
[395086002,1764413477405,-250.0,0.00016894,2]
[395086003,1764413477415,-250.0,0.00016894,2]
[395086004,1764413477424,-250.0,0.00016894,2]
[395086005,1764413477434,-250.0,0.00016894,2]
[395086006,1764413477443,-500.0,0.00016894,2]
[395086007,1764413477452,-250.0,0.00016894,2]
[395086008,1764413477461,-500.0,0.00016894,2]
[395086009,1764413477471,-250.0,0.00016894,2]
[395086010,1764413477480,-500.0,0.00016894,2]
[395086011,1764413477488,-250.0,0.00016894,2]
[395086012,1764413477499,-500.0,0.00016894,2]
[395086013,1764413477508,-250.0,0.00016894,2]
[395086014,1764413477517,-500.0,0.00016894,2]
[395086015,1764413477527,-250.0,0.00016894,2]
[395086016,1764413477536,-250.0,0.00016894,2]
[395086017,1764413477546,-500.0,0.00016894,2]
[395086018,1764413477556,-250.0,0.00016894,2]
[395086019,1764413477566,-500.0,0.00016894,2]
[395086020,1764413477575,-500.0,0.00016894,2]
[395086021,1764413477584,-500.0,0.00016894,2]
[395086022,1764413477889,-267.46074303,0.00016894,2]
[395086023,1764413477912,-500.0,0.00016894,2]
[395086024,1764413477921,-500.0,0.00016894,2]
[395086025,1764413477931,-500.0,0.00016894,2]
[395086026,1764413477942,-500.0,0.00016894,2]
[395086027,1764413477952,-500.0,0.00016894,2]
[395086028,1764413477961,-500.0,0.00016894,2]
[395086029,1764413477973,-500.0,0.00016894,2]
[395086030,1764413477982,-500.0,0.00016894,2]
[395086031,1764413477992,-500.0,0.00016894,2]
[395086032,1764413478002,-500.0,0.00016894,2]
[395086033,1764413478011,-500.0,0.00016894,2]
[395086034,1764413478021,-151.0,0.00016894,2]
[395086035,1764413478030,-500.0,0.00016894,2]
[395086036,1764413478039,-500.0,0.00016894,2]
[395086037,1764413478048,-500.0,0.00016894,2]
[395086038,1764413478058,-500.0,0.00016894,2]
[395086039,1764413478067,-1000.0,0.00016894,2]
[395086040,1764413478076,-500.0,0.00016894,2]
[395086041,1764413478085,-500.0,0.00016894,2]
[395086042,1764413478095,-500.0,0.00016894,2]
[395086043,1764413478104,-500.0,0.00016894,2]
[395086044,1764413478113,-500.0,0.00016894,2]
[395086045,1764413478122,-500.0,0.00016894,2]
[395086046,1764413478132,-984.0,0.00016894,2]
[395086047,1764413478141,-500.0,0.00016894,2]
[395086048,1764413478150,-500.0,0.00016894,2]
[395086049,1764413478159,-500.0,0.00016894,2]
[395086050,1764413478168,-500.0,0.00016894,2]
[395086051,1764413478177,-500.0,0.00016894,2]
[395086052,1764413478190,-500.0,0.00016894,2]
[395086053,1764413478200,-250.0,0.00016894,2]
[395086054,1764413478211,-250.0,0.00016894,2]
[395086055,1764413478220,-250.0,0.00016894,2]
[395086056,1764413478231,-250.0,0.00016894,2]
[395086057,1764413478242,-250.0,0.00016894,2]
[395086058,1764413478251,-250.0,0.00016894,2]
[395086059,1764413478262,-250.0,0.00016894,2]
[395086060,1764413478273,-259.83302732,0.000169,2]
[395086061,1764413478282,-153.87235402,0.000169,2]
[395086062,1764413478293,-164.17078125,0.000169,2]
[395086063,1764413478303,-3170.6228084,0.00016955,2]
[395086064,1764413478313,-2785.5969634,0.00016957,2]
[395086065,1764413478322,-280.03542733,0.00016973,2]
[395086066,1764413478331,-500.0,0.00016973,2]
[395086067,1764413478341,-500.0,0.00016973,2]
[395086068,1764413478351,-500.0,0.00016973,2]
[395086069,1764413478360,-500.0,0.00016973,2]
[395086070,1764413478370,-500.0,0.00016973,2]
[395086071,1764413478379,-500.0,0.00016973,2]
[395086072,1764413478389,-501.33657901,0.00016973,2]
[395086073,1764413478399,-500.0,0.00016973,2]
[395086074,1764413478408,-500.0,0.00016973,2]
[395086075,1764413478417,-500.0,0.00016973,2]
[395086076,1764413478427,-422.93496155,0.00016973,2]
[395086077,1764413478436,-500.0,0.00016973,2]
[395086078,1764413478446,-500.0,0.00016973,2]
[395086079,1764413478457,-160.05324003,0.00016973,2]
[395086080,1764413478466,-500.94005513,0.00016973,2]
[395086081,1764413478475,-500.0,0.00016973,2]
[395086082,1764413478486,-500.0,0.00016973,2]
[395086083,1764413478496,-500.0,0.00016973,2]
[395086084,1764413478505,-500.67631457,0.00016973,2]
[395086085,1764413478515,-500.0,0.00016973,2]
[395086086,1764413478524,-500.0,0.00016973,2]
[395086087,1764413478534,-500.0,0.00016973,2]
[395086088,1764413478544,-373.18800229,0.00016973,2]
[395086089,1764413478553,-500.0,0.00016973,2]
[395086090,1764413478563,-500.0,0.00016973,2]
[395086091,1764413478572,-500.0,0.00016973,2]
[395086092,1764413478582,-500.0,0.00016973,2]
[395086093,1764413478591,-500.0,0.00016973,2]
[395086094,1764413478600,-500.0,0.00016973,2]
[395086095,1764413478609,-500.0,0.00016973,2]
[395086096,1764413478620,-500.0,0.00016973,2]
[395086097,1764413478629,-500.0,0.00016973,2]
[395086098,1764413478638,-500.0,0.00016973,2]
[395086099,1764413478648,-500.0,0.00016973,2]
[395086100,1764413478657,-502.81238066,0.00016973,2]
[395086101,1764413478667,-500.0,0.00016973,2]
[395086102,1764413478676,-500.0,0.00016973,2]
[395086103,1764413478686,-11466.1419798,0.00016992,2]
[395086104,1764413478696,-500.0000001,0.00016992,2]
[395086105,1764413478708,-162.83089668,0.00016997,2]
[395086106,1764413478718,-300.0,0.00016999,2]
[395086107,1764413478728,-300.0,0.00016999,2]
[395086108,1764413478738,-57818.34779343,0.00017,2]
[395086109,1764413479359,-564.68924408,0.00017,2]
[395086110,1764413479399,-619.94646908,0.00017,2]
[395086111,1764413479410,-1041.0,0.00017,2]
[395086112,1764413479421,-5949.76729662,0.00017,2]
[395086113,1764413479487,-1770.4504776,0.00017,2]
[395086114,1764413481820,-53045.11791045,0.00017,2]
[395086115,1764413481839,-6484.4477273,0.00017,2]
[395086116,1764413481903,-2795.16460556,0.00017,2]
[395086117,1764413481912,-6400.99099444,0.00017,2]
[395086118,1764413481976,-198842.32836099,0.00017,2]
[395086119,1764413497612,300.0,0.00010432,2]
[395086120,1764413498660,420.0,0.0001147,2]
[395086121,1764413501492,180.0,0.00012611,2]
[395086123,1764413505545,250.0,0.00011475,2]
[395086124,1764413505628,250.0,0.00010619,2]
[395086125,1764413505967,-225.69316841,0.00014848,2]
[395086130,1764413546822,-290.26353375,0.00014848,2]
[395086131,1764413590951,-150.0,0.00014848,2]
[395086132,1764413590971,-250.0,0.00014848,2]
[395086133,1764413590992,-195.0,0.00014848,2]
[395086134,1764413591016,-43.4094518,0.00014848,2]
[395086135,1764413634003,-500.0,0.00014837,2]
[395086136,1764413634024,-91.5700817,0.00014847,2]
[395086138,1764413676456,-289.71992371,0.00014847,2]
[395086139,1764413718210,-310.70999459,0.00014847,2]
[395086140,1764413718231,-98.13770541,0.00014847,2]
[395086141,1764413754455,-281.13378765,0.00014749,2]
[395086142,1764413786862,-200.0,0.00014748,2]
[395086143,1764413810087,-224.5872,0.00014748,2]
[395086144,1764413810116,-190.7605696,0.00014749,2]
[395086145,1764413810520,-3560.95107694,0.00014749,2]
[395086146,1764413816279,-166.82,0.00014749,2]
[395086147,1764413837197,-1880.59230692,0.00014749,2]
[395086148,1764413837207,-51.86229459,0.00014847,2]
[395086149,1764413837216,-114.95770541,0.00014847,2]
[395086150,1764413844530,-799.99999983,0.00014847,2]
[395086151,1764413853915,-150.0,0.00014846,2]
[395086152,1764413853947,-285.04229476,0.00014847,2]
[395086153,1764413853979,-300.0,0.00014847,2]
[395086154,1764413854010,-482.82027894,0.00014847,2]
[395086155,1764413854043,-625.130891,0.00014847,2]
[395086156,1764413854078,-500.0,0.00014847,2]
[395086157,1764413854109,-167.26398684,0.00014847,2]
[395086158,1764413854142,-500.0,0.00014847,2]
[395086159,1764413854174,-382.76011698,0.00014847,2]
[395086160,1764413854204,-500.0,0.00014847,2]
[395086161,1764413854238,-500.0,0.00014847,2]
[395086162,1764413854268,-500.0,0.00014847,2]
[395086163,1764413854305,-13.98727457,0.00014847,2]
[395086164,1764413869351,-186.00031382,0.00014847,2]
[395086165,1764413869378,-103.7196099,0.00014847,2]
[395086166,1764413877148,-186.00031382,0.00014847,2]
[395086167,1764413891238,-210.28007628,0.00014847,2]
[395086168,1764413891260,-201.397409,0.00014847,2]
[395086169,1764413908151,-300.0,0.00014846,2]
[395086170,1764413908173,-200.00000017,0.00014847,2]
[395086171,1764413922248,-142.87069657,0.00014847,2]
[395086172,1764413922273,-331.35159343,0.00014847,2]
[395086173,1764413933688,-191.89281075,0.00014749,2]
[395086174,1764413939397,-500.0,0.00014749,2]
[395086175,1764413944549,-201.43310583,0.00014749,2]
[395086176,1764413949664,-500.0,0.00014749,2]
[395086177,1764413951440,-10000.01,0.00014749,2]
[395086178,1764413952145,-972.44419467,0.00014749,2]
[395086179,1764413955804,-168.64840657,0.00014847,2]
[395086180,1764413955829,-71.77038155,0.00014847,2]
[395086181,1764413959777,-250.0,0.00014798,2]
[395086182,1764413959802,-101.0,0.00014847,2]
[395086183,1764413965017,-206.28669959,0.00014847,2]
[395086184,1764413969741,-120.94291886,0.00014847,2]
[395086185,1764413969768,-138.63829302,0.00014847,2]
[395086186,1764413974272,-256.41102697,0.00014847,2]
[395086187,1764413978388,-104.95068001,0.00014847,2]
[395086188,1764413978417,-179.49298606,0.00014847,2]
[395086189,1764413980225,-158.30687664,0.00014847,2]
[395086190,1764413985623,-162.2001373,0.00014847,2]
[395086191,1764413985647,-216.15850469,0.00014847,2]
[395086192,1764413988961,-192.39060635,0.00014847,2]
[395086193,1764413991081,-91.45088896,0.00014847,2]
[395086194,1764413991105,-310.43389448,0.00014847,2]
[395086195,1764413992746,-189.56610552,0.00014847,2]
[395086196,1764413992769,-182.63912679,0.00014847,2]
[395086197,1764413996988,-296.69294575,0.00014847,2]
[395086198,1764414000771,-20.66792746,0.00014847,2]
[395086199,1764414000795,-340.55394441,0.00014847,2]
[395086200,1764414004761,2000.0,0.00014748,2]
[395086201,1764414007968,-300.0,0.00014846,2]
[395086202,1764414007991,-229.84748584,0.00014846,2]
[395086203,1764414010583,-286.74148719,0.00014846,2]
[395086204,1764414013132,-375.60849813,0.00014846,2]
[395086205,1764414016534,-307.80252884,0.00014846,2]
[395086206,1764414016554,-153.25075166,0.00014847,2]
[395086207,1764414021819,-84.93709365,0.00014847,2]
[395086208,1764414021840,-150.0,0.00014847,2]
[395086209,1764414021860,-42.24955647,0.00014847,2]
[395086210,1764414025320,-414.11772154,0.00014847,2]
[395086211,1764414030927,-390.69115112,0.00014847,2]
[395086212,1764414030947,-71.79017541,0.00014847,2]
[395086213,1764414035200,-139.20982459,0.00014847,2]
[395086214,1764414035223,-99.7051635,0.00014847,2]
[395086215,1764414040331,-185.11498956,0.00014847,2]
[395086216,1764414044859,-202.84926283,0.00014847,2]
[395086217,1764414052622,-12.33058411,0.00014847,2]
[395086218,1764414052645,-429.19394788,0.00014847,2]
[395086219,1764414060029,-70.80605212,0.00014847,2]
[395086220,1764414060051,-214.86335852,0.00014847,2]
[395086221,1764414068138,-267.9696451,0.00014847,2]
[395086222,1764414078254,-17.16699638,0.00014847,2]
[395086223,1764414078280,-159.44605559,0.00014847,2]
[395086224,1764414078305,-87.41255057,0.00014847,2]
[395086225,1764414093354,-160.90316344,0.00014847,2]
[395086226,1764414093375,-157.98821696,0.00014847,2]
[395086227,1764414093400,-42.38239993,0.00014847,2]
[395086228,1764414105944,3182.463,0.00014551,2]
[395086229,1764414105983,173.004,0.00014551,2]
[395086230,1764414107933,-230.98931306,0.00014847,2]
[395086231,1764414127135,-310.09468314,0.00014847,2]
[395086232,1764414145403,-443.52453199,0.00014748,2]
[395086233,1764414166686,-207.94175836,0.00014748,2]
[395086234,1764414193089,999.0,0.0001463,3]
[395086235,1764414196504,-270.15251416,0.00014748,2]
[395086236,1764414231196,-200.0,0.00014748,2]
[395086237,1764414261973,250.0,0.00014638,2]
[395086238,1764414274738,-282.47125149,0.00014748,2]
[395086239,1764414323455,-255.14952623,0.00014748,2]
[395086242,1764414370860,-300.0,0.00014747,2]
[395086243,1764414370880,-195.0,0.00014748,2]
[395086244,1764414370902,-5.0,0.00014748,2]
[395086245,1764414411970,-250.0,0.00014747,2]
[395086246,1764414411991,-289.28652202,0.00014748,2]
[395086264,1764414444715,-300.00000017,0.00014748,2]
[395086265,1764414453876,-300.0,0.00014747,2]
[395086266,1764414453904,-3339.33358082,0.00014748,2]
[395086267,1764414454113,-2721.34283836,0.00014748,2]
[395086268,1764414454141,-536.63075419,0.00014748,2]
[395086269,1764414458675,1500.0,0.00014278,2]
[395086270,1764414471928,-300.0,0.00014748,2]
[395086271,1764414480023,-184.71208417,0.00014748,2]
[395086272,1764414480074,-536.63075419,0.00014748,2]
[395086273,1764414480106,-3484.0628149,0.00014748,2]
[395086274,1764414482431,-3376.21355309,0.00014748,2]
[395086275,1764414486095,-3247.58289382,0.00014748,2]
[395086276,1764414497763,-183.9523318,0.00014747,2]
[395086277,1764414507549,-1016.0476682,0.00014747,2]
[395086278,1764414507558,-160.2092847,0.00014748,2]
[395086279,1764414507568,-2071.32594092,0.00014748,2]
[395086280,1764414507638,-3504.84421236,0.00014748,2]
[395086281,1764414508053,-262.15164672,0.00014748,2]
[395086282,1764414508080,-195.0,0.00014767,2]
[395086283,1764414508106,-151.0,0.00014803,2]
[395086284,1764414508132,-200.0,0.00014803,2]
[395086285,1764414508158,-200.0,0.00014803,2]
[395086286,1764414508184,-151.0,0.00014803,2]
[395086287,1764414508212,-151.0,0.00014803,2]
[395086288,1764414508239,-151.0,0.00014803,2]
[395086289,1764414508265,-151.0,0.00014803,2]
[395086290,1764414508295,-151.0,0.00014803,2]
[395086291,1764414508324,-151.0,0.00014803,2]
[395086292,1764414508351,-151.0,0.00014803,2]
[395086293,1764414508378,-200.0,0.00014803,2]
[395086294,1764414508406,-151.0,0.00014803,2]
[395086295,1764414508769,-151.0,0.00014803,2]
[395086296,1764414508797,-151.0,0.00014803,2]
[395086297,1764414508826,-151.0,0.00014803,2]
[395086298,1764414508855,-151.0,0.00014803,2]
[395086299,1764414508882,-151.0,0.00014803,2]
[395086300,1764414508909,-151.0,0.00014803,2]
[395086301,1764414508938,-151.0,0.00014803,2]
[395086302,1764414508964,-151.0,0.00014803,2]
[395086303,1764414508991,-151.0,0.00014803,2]
[395086304,1764414509019,-151.0,0.00014803,2]
[395086305,1764414509045,-151.0,0.00014803,2]
[395086306,1764414509073,-151.0,0.00014803,2]
[395086307,1764414509101,-151.0,0.00014803,2]
[395086308,1764414509126,-151.0,0.00014803,2]
[395086309,1764414509153,-151.0,0.00014803,2]
[395086310,1764414509179,-151.0,0.00014803,2]
[395086311,1764414509205,-151.0,0.00014803,2]
[395086312,1764414518412,-151.0,0.00014803,2]
[395086313,1764414518800,-26.98947158,0.00014803,2]
[395086314,1764414527650,-33.70670656,0.00014803,2]
[395086315,1764414538498,-284.98947158,0.00014748,2]
[395086316,1764414555283,-267.01052842,0.00014748,2]
[395086319,1764414573263,-169.47029266,0.00014748,2]
[395086325,1764414587054,-435.78500757,0.00014748,2]
[395086326,1764414599408,-300.0,0.00014748,2]
[395086327,1764414610018,-174.22229,0.00014748,2]
[395086328,1764414617514,-426.11966787,0.00014748,2]
[395086329,1764414622669,-375.24886067,0.00014748,2]
[395086330,1764414627565,-2285.09148144,0.00014748,2]
[395086331,1764414627593,-210.0,0.00014748,2]
[395086332,1764414627622,-160.20928469,0.00014748,2]
[395086333,1764414627654,-865.3175896,0.00014757,2]
[395086334,1764414627684,-300.0,0.00014766,2]
[395086335,1764414627713,-300.0,0.00014766,2]
[395086336,1764414627743,-558.77328854,0.00014766,2]
[395086337,1764414628370,-321.92752616,0.00014748,2]
[395086338,1764414631019,-641.22671146,0.00014748,2]
[395086339,1764414631744,1852.42,0.00014197,2]
[395086343,1764414633401,-426.52691608,0.00014748,2]
[395086344,1764414635144,-10000.01,0.00014748,2]
[395086345,1764414635585,-10000.01,0.00014748,2]
[395086346,1764414636335,-242288.14538846,0.00014748,2]
[395086347,1764414636346,-14053.54842718,0.00014748,2]
[395086348,1764414636359,-139578.99836978,0.00014748,2]
[395086349,1764414636370,-235196.29756814,0.00014748,2]
[395086350,1764414636852,-1538.8427499,0.00014748,2]
[395086351,1764414637129,-4837.61447808,0.00014748,2]
[395086370,1764414642285,-233.212539,0.00014748,2]
[395086390,1764414645554,-100883.63932576,0.00014748,2]
[395086391,1764414645563,-641.22671146,0.00014766,2]
[395086392,1764414645572,-90497.47782019,0.00014767,2]
[395086393,1764414645583,-20123.87641361,0.00014767,2]
[395086394,1764414645592,-1000.0,0.00014778,2]
[395086395,1764414645602,-200.0,0.00014799,2]
[395086396,1764414645912,-90.30382186,0.00014803,2]
[395086397,1764414645947,-151.0,0.00014803,2]
[395086398,1764414645956,-151.0,0.00014803,2]
[395086399,1764414645965,-151.0,0.00014803,2]
[395086400,1764414645974,-151.0,0.00014803,2]
[395086401,1764414645984,-151.0,0.00014803,2]
[395086402,1764414645993,-500.0,0.00014803,2]
[395086403,1764414646003,-500.0,0.00014803,2]
[395086404,1764414646012,-28674.5454207,0.00014838,2]
[395086405,1764414646021,-1000.0,0.00014846,2]
[395086406,1764414646031,-1000.0,0.00014846,2]
[395086407,1764414646040,-19036.28777013,0.00014847,2]
[395086408,1764414646050,-500.0,0.00014847,2]
[395086410,1764414646059,-500.0,0.00014847,2]
[395086412,1764414646069,-500.0,0.00014847,2]
[395086413,1764414646078,-500.0,0.00014847,2]
[395086414,1764414646087,-161.54653513,0.00014847,2]
[395086415,1764414646096,-500.0,0.00014847,2]
[395086416,1764414646104,-187.72035735,0.00014847,2]
[395086417,1764414646114,-184.31958646,0.00014847,2]
[395086418,1764414646123,-200.0,0.00014847,2]
[395086419,1764414646133,-500.0,0.00014847,2]
[395086420,1764414646142,-600.0,0.00014848,2]
[395086421,1764414646151,-627.5546,0.0001485,2]
[395086422,1764414646161,-6652.7975,0.0001485,2]
[395086423,1764414646170,-313.21,0.00014852,2]
[395086424,1764414646179,-9999.99,0.00014852,2]
[395086425,1764414646189,-897.72,0.00014852,2]
[395086426,1764414646198,-500.0,0.00014949,2]
[395086427,1764414646207,-428.02188527,0.00014949,2]
[395086428,1764414646216,-500.0,0.00014949,2]
[395086429,1764414646225,-500.0,0.00014949,2]
[395086430,1764414646234,-343.53785786,0.00014949,2]
[395086431,1764414646243,-500.0,0.00014949,2]
[395086432,1764414646252,-238.60108626,0.00014949,2]
[395086433,1764414646261,-500.0,0.00014949,2]
[395086434,1764414646271,-500.0,0.00014949,2]
[395086435,1764414646280,-500.0,0.00014949,2]
[395086436,1764414646289,-500.0,0.00014949,2]
[395086437,1764414646299,-500.0,0.00014949,2]
[395086438,1764414646308,-500.0,0.00014949,2]
[395086439,1764414646317,-200.0,0.00014995,2]
[395086440,1764414646326,-500.0,0.00015021,2]
[395086441,1764414646335,-500.0,0.00015021,2]
[395086442,1764414646345,-500.0,0.00015021,2]
[395086443,1764414646354,-500.0,0.00015021,2]
[395086444,1764414646363,-600.0,0.00015122,2]
[395086445,1764414646373,-897.72,0.00015126,2]
[395086446,1764414646382,-200.0,0.00015145,2]
[395086447,1764414646392,-42549.03,0.00015193,2]
[395086448,1764414646401,-150.0,0.00015288,2]
[395086449,1764414646410,-150.0,0.00015288,2]
[395086450,1764414646419,-150.0,0.00015288,2]
[395086451,1764414646429,-150.0,0.00015288,2]
[395086452,1764414646438,-150.0,0.00015288,2]
[395086453,1764414646447,-150.0,0.00015288,2]
[395086454,1764414646456,-150.0,0.00015288,2]
[395086455,1764414646465,-150.0,0.00015288,2]
[395086456,1764414646474,-150.0,0.00015288,2]
[395086457,1764414646483,-150.0,0.00015288,2]
[395086458,1764414646492,-150.0,0.00015288,2]
[395086459,1764414646502,-500.0,0.00015309,2]
[395086460,1764414646511,-500.0,0.00015309,2]
[395086461,1764414646520,-150.99,0.0001531,2]
[395086462,1764414646529,-9999.99,0.0001531,2]
[395086463,1764414646538,-999.99,0.0001531,2]
[395086464,1764414646547,-4081.46,0.0001531,2]